fUST/lending_fUST_20250713
["ID","MTS","AMOUNT","RATE_DAILY","PERIOD"]
[371742023,1752412244814,-460.0,0.00016712,2]
[371742025,1752412244824,-460.0,0.00016712,2]
[371742027,1752412244833,-461.02,0.00016712,2]
[371742029,1752412244845,-460.0,0.00016712,2]
[371742042,1752412244955,-460.0,0.00016712,2]
[371742044,1752412244965,-507.11,0.00016712,2]
[371742046,1752412244975,-460.0,0.00016712,2]
[371742048,1752412244984,-460.0,0.00016712,2]
[371742050,1752412244994,-460.0,0.00016712,2]
[371742052,1752412245004,-460.0,0.00016712,2]
[371742054,1752412245013,-460.0,0.00016712,2]
[371742056,1752412245023,-460.0,0.00016712,2]
[371742058,1752412245032,-460.0,0.00016712,2]
[371742060,1752412245042,-244.07842454,0.00016712,2]
[371742062,1752412245051,-600.71,0.00016712,2]
[371742064,1752412245060,-460.0,0.00016712,2]
[371742066,1752412245069,-1857.93,0.00016712,2]
[371742068,1752412245079,-460.0,0.00016712,2]
[371742070,1752412245089,-460.0,0.00016712,2]
[371742072,1752412245099,-460.0,0.00016712,2]
[371742074,1752412245108,-460.0,0.00016712,2]
[371742076,1752412245117,-460.0,0.00016712,2]
[371742078,1752412245127,-460.0,0.00016712,2]
[371742080,1752412245137,-1161.66,0.00016712,2]
[371742082,1752412245147,-460.0,0.00016712,2]
[371742084,1752412245158,-1318.75,0.00016712,2]
[371742086,1752412245168,-625.22,0.00016712,2]
[371742087,1752412245178,-549.9373962,0.00016712,2]
[371742089,1752412245190,-460.0,0.00016712,2]
[371742091,1752412245201,-584.52,0.00016712,2]
[371742093,1752412245216,-460.0,0.00016712,2]
[371742095,1752412245226,-460.0,0.00016712,2]
[371742097,1752412245238,-658.56,0.00016712,2]
[371742099,1752412245249,-460.0,0.00016712,2]
[371742101,1752412245259,-151.0,0.00016712,2]
[371742103,1752412245270,-460.0,0.00016712,2]
[371742105,1752412245281,-460.0,0.00016712,2]
[371742107,1752412245293,-460.0,0.00016712,2]
[371742109,1752412245304,-460.0,0.00016712,2]
[371742111,1752412245318,-460.0,0.00016712,2]
[371742113,1752412245329,-526.59,0.00016712,2]
[371742115,1752412245346,-733.1,0.00016712,2]
[371742118,1752412245564,-798.12,0.00016712,2]
[371742120,1752412245574,-460.0,0.00016712,2]
[371742123,1752412245584,-460.0,0.00016712,2]
[371742124,1752412245596,-460.0,0.00016712,2]
[371742126,1752412245605,-460.0,0.00016712,2]
[371742129,1752412245616,-460.0,0.00016712,2]
[371742131,1752412245627,-460.0,0.00016712,2]
[371742133,1752412245636,-460.0,0.00016712,2]
[371742135,1752412245646,-460.0,0.00016712,2]
[371742137,1752412245655,-913.51,0.00016712,2]
[371742139,1752412245664,-460.0,0.00016712,2]
[371742141,1752412245674,-460.0,0.00016712,2]
[371742144,1752412245683,-460.0,0.00016712,2]
[371742146,1752412245692,-460.0,0.00016712,2]
[371742148,1752412245701,-957.33,0.00016712,2]
[371742150,1752412245710,-460.0,0.00016712,2]
[371742152,1752412245719,-460.0,0.00016712,2]
[371742154,1752412245730,-460.0,0.00016712,2]
[371742156,1752412245739,-460.0,0.00016712,2]
[371742158,1752412245748,-460.0,0.00016712,2]
[371742160,1752412245757,-460.0,0.00016712,2]
[371742162,1752412245766,-460.0,0.00016712,2]
[371742164,1752412245776,-460.0,0.00016712,2]
[371742166,1752412245785,-460.0,0.00016712,2]
[371742168,1752412245795,-460.0,0.00016712,2]
[371742170,1752412245804,-460.0,0.00016712,2]
[371742172,1752412245813,-460.0,0.00016712,2]
[371742174,1752412245822,-460.0,0.00016712,2]
[371742176,1752412245831,-2411.81,0.00016712,2]
[371742177,1752412245842,-460.0,0.00016712,2]
[371742180,1752412245851,-460.0,0.00016712,2]
[371742182,1752412245861,-460.0,0.00016712,2]
[371742183,1752412245870,-460.0,0.00016712,2]
[371742185,1752412245879,-460.0,0.00016712,2]
[371742187,1752412245888,-588.65,0.00016712,2]
[371742189,1752412245898,-460.0,0.00016712,2]
[371742191,1752412245907,-460.0,0.00016712,2]
[371742193,1752412245917,-460.0,0.00016712,2]
[371742195,1752412245926,-460.0,0.00016712,2]
[371742197,1752412245935,-460.0,0.00016712,2]
[371742199,1752412245945,-2270.15,0.00016712,2]
[371742201,1752412245954,-460.0,0.00016712,2]
[371742203,1752412245965,-642.75,0.00016712,2]
[371742205,1752412245974,-460.0,0.00016712,2]
[371742207,1752412245983,-460.0,0.00016712,2]
[371742209,1752412245993,-514.40934441,0.00016712,2]
[371742211,1752412246003,-523.84,0.00016712,2]
[371742213,1752412246012,-460.0,0.00016712,2]
[371742215,1752412246021,-460.0,0.00016712,2]
[371742217,1752412246031,-500.0,0.00016773,2]
[371742219,1752412246040,-500.0,0.00016773,2]
[371742221,1752412246049,-632.43968862,0.00016773,2]
[371742223,1752412246058,-500.0,0.00016773,2]
[371742225,1752412246066,-500.0,0.00016773,2]
[371742227,1752412246076,-500.0,0.00016773,2]
[371742229,1752412246085,-500.0,0.00016773,2]
[371742231,1752412246095,-256.99765276,0.00016773,2]
[371742233,1752412246104,-500.0,0.00016773,2]
[371742235,1752412246114,-500.0,0.00016773,2]
[371742237,1752412246123,-500.0,0.00016773,2]
[371742239,1752412246132,-500.0,0.00016773,2]
[371742241,1752412246141,-500.0,0.00016773,2]
[371742242,1752412246151,-500.0,0.00016773,2]
[371742244,1752412246160,-164.73942471,0.00016773,2]
[371742247,1752412246169,-500.0,0.00016773,2]
[371742249,1752412246179,-500.0,0.00016773,2]
[371742250,1752412246189,-500.0,0.00016773,2]
[371742253,1752412246198,-472.30408363,0.00016773,2]
[371742254,1752412246207,-502.26266064,0.00016773,2]
[371742256,1752412246217,-500.0,0.00016773,2]
[371742258,1752412246227,-500.0,0.00016773,2]
[371742261,1752412246236,-357.31698797,0.00016773,2]
[371742263,1752412246245,-500.0,0.00016773,2]
[371742265,1752412246255,-500.0,0.00016773,2]
[371742267,1752412246264,-505.50054643,0.00016773,2]
[371742269,1752412246274,-501.25544665,0.00016773,2]
[371742271,1752412246284,-500.0,0.00016773,2]
[371742273,1752412246293,-500.0,0.00016773,2]
[371742275,1752412246303,-503.19422847,0.00016827,2]
[371742277,1752412246316,-266.46663728,0.00016958,2]
[371742279,1752412246325,-500.0,0.00016973,2]
[371742280,1752412246335,-500.0,0.00016973,2]
[371742283,1752412246346,-578.16123065,0.00016973,2]
[371742284,1752412246355,-1027.08423943,0.00016986,2]
[371742286,1752412246365,-460.0,0.00016986,2]
[371742288,1752412246374,-460.0,0.00016986,2]
[371742290,1752412246383,-460.0,0.00016986,2]
[371742292,1752412246393,-460.0,0.00016986,2]
[371742293,1752412246402,-460.0,0.00016986,2]
[371742294,1752412246411,-460.0,0.00016986,2]
[371742295,1752412246421,-460.0,0.00016986,2]
[371742296,1752412246431,-460.0,0.00016986,2]
[371742297,1752412246440,-480.06,0.00016986,2]
[371742298,1752412246450,-460.0,0.00016986,2]
[371742299,1752412246459,-460.0,0.00016986,2]
[371742300,1752412246468,-460.0,0.00016986,2]
[371742302,1752412246478,-460.0,0.00016986,2]
[371742304,1752412246487,-460.0,0.00016986,2]
[371742306,1752412246496,-460.0,0.00016986,2]
[371742308,1752412246505,-460.0,0.00016986,2]
[371742310,1752412246515,-460.0,0.00016986,2]
[371742312,1752412246527,-460.0,0.00016986,2]
[371742314,1752412246537,-460.0,0.00016986,2]
[371742317,1752412246546,-460.0,0.00016986,2]
[371742319,1752412246556,-460.0,0.00016986,2]
[371742321,1752412246565,-521.93,0.00016986,2]
[371742322,1752412246574,-463.71139512,0.00016986,2]
[371742324,1752412246584,-460.0,0.00016986,2]
[371742326,1752412246595,-460.0,0.00016986,2]
[371742328,1752412246605,-460.0,0.00016986,2]
[371742330,1752412246614,-460.0,0.00016986,2]
[371742332,1752412246623,-546.38,0.00016986,2]
[371742334,1752412246635,-197.12501723,0.00016986,2]
[371742336,1752412246644,-460.0,0.00016986,2]
[371742338,1752412246653,-460.0,0.00016986,2]
[371742340,1752412246663,-460.0,0.00016986,2]
[371742343,1752412246672,-460.0,0.00016986,2]
[371742344,1752412246681,-460.0,0.00016986,2]
[371742346,1752412246691,-460.0,0.00016986,2]
[371742348,1752412246700,-460.0,0.00016986,2]
[371742351,1752412246710,-460.0,0.00016986,2]
[371742352,1752412246719,-466.49075924,0.00016986,2]
[371742354,1752412246728,-178.41707324,0.00016986,2]
[371742356,1752412246737,-460.0,0.00016986,2]
[371742358,1752412246746,-460.0,0.00016986,2]
[371742360,1752412246755,-460.0,0.00016986,2]
[371742363,1752412246775,-460.0,0.00016986,2]
[371742365,1752412246786,-460.0,0.00016986,2]
[371742367,1752412246795,-460.0,0.00016986,2]
[371742369,1752412246805,-460.0,0.00016986,2]
[371742370,1752412246814,-229.67,0.00016986,2]
[371742371,1752412246824,-460.0,0.00016986,2]
[371742372,1752412246833,-363.55788211,0.00016986,2]
[371742373,1752412246846,-460.0,0.00016986,2]
[371742374,1752412246855,-284.65942692,0.00016986,2]
[371742375,1752412246865,-460.0,0.00016986,2]
[371742376,1752412246875,-460.00000048,0.00016986,2]
[371742377,1752412246884,-460.0,0.00016986,2]
[371742378,1752412246894,-460.0,0.00016986,2]
[371742379,1752412246903,-460.0,0.00016986,2]
[371742380,1752412246913,-460.0,0.00016986,2]
[371742381,1752412246922,-460.0,0.00016986,2]
[371742382,1752412246932,-460.0,0.00016986,2]
[371742383,1752412246941,-460.0,0.00016986,2]
[371742384,1752412246951,-460.0,0.00016986,2]
[371742385,1752412246960,-460.0,0.00016986,2]
[371742386,1752412246971,-460.0,0.00016986,2]
[371742387,1752412246980,-460.0,0.00016986,2]
[371742388,1752412246989,-1097.75,0.00016986,2]
[371742389,1752412246999,-460.0,0.00016986,2]
[371742390,1752412247009,-460.0,0.00016986,2]
[371742391,1752412247019,-443.65888147,0.00016986,2]
[371742392,1752412247028,-460.0,0.00016986,2]
[371742393,1752412247038,-1912.71,0.00016986,2]
[371742394,1752412247048,-460.0,0.00016986,2]
[371742395,1752412247058,-460.0,0.00016986,2]
[371742396,1752412247068,-460.0,0.00016986,2]
[371742397,1752412247078,-460.0,0.00016986,2]
[371742398,1752412247090,-2434.91,0.00016986,2]
[371742399,1752412247100,-460.0,0.00016986,2]
[371742400,1752412247110,-460.0,0.00016986,2]
[371742401,1752412247120,-461.02,0.00016986,2]
[371742402,1752412247130,-460.0,0.00016986,2]
[371742403,1752412247139,-460.0,0.00016986,2]
[371742404,1752412247148,-507.11,0.00016986,2]
[371742405,1752412247157,-460.0,0.00016986,2]
[371742406,1752412247167,-460.0,0.00016986,2]
[371742407,1752412247176,-460.0,0.00016986,2]
[371742408,1752412247185,-460.0,0.00016986,2]
[371742409,1752412247195,-460.0,0.00016986,2]
[371742410,1752412247204,-460.0,0.00016986,2]
[371742412,1752412247213,-600.71,0.00016986,2]
[371742413,1752412247223,-460.0,0.00016986,2]
[371742414,1752412247232,-1857.93,0.00016986,2]
[371742415,1752412247242,-460.0,0.00016986,2]
[371742416,1752412247252,-460.0,0.00016986,2]
[371742417,1752412247262,-460.0,0.00016986,2]
[371742418,1752412247272,-460.0,0.00016986,2]
[371742419,1752412247282,-460.0,0.00016986,2]
[371742420,1752412247291,-1161.66,0.00016986,2]
[371742421,1752412247301,-460.0,0.00016986,2]
[371742422,1752412247310,-1318.75,0.00016986,2]
[371742423,1752412247319,-625.22,0.00016986,2]
[371742424,1752412247329,-584.52,0.00016986,2]
[371742425,1752412247339,-460.0,0.00016986,2]
[371742426,1752412247349,-460.0,0.00016986,2]
[371742427,1752412247359,-658.56,0.00016986,2]
[371742428,1752412247372,-460.0,0.00016986,2]
[371742429,1752412247381,-460.0,0.00016986,2]
[371742430,1752412247391,-460.0,0.00016986,2]
[371742431,1752412247401,-460.0,0.00016986,2]
[371742432,1752412247410,-460.0,0.00016986,2]
[371742433,1752412247420,-460.0,0.00016986,2]
[371742434,1752412247429,-526.59,0.00016986,2]
[371742435,1752412247439,-733.1,0.00016986,2]
[371742436,1752412247448,-798.12,0.00016986,2]
[371742437,1752412247458,-460.0,0.00016986,2]
[371742438,1752412247469,-460.0,0.00016986,2]
[371742439,1752412247479,-414.72475317,0.00016986,2]
[371742440,1752412247488,-460.0,0.00016986,2]
[371742441,1752412247498,-460.0,0.00016986,2]
[371742442,1752412247507,-460.0,0.00016986,2]
[371742443,1752412247660,-460.0,0.00016986,2]
[371742444,1752412247670,-913.51,0.00016986,2]
[371742445,1752412247679,-460.0,0.00016986,2]
[371742446,1752412247689,-460.0,0.00016986,2]
[371742447,1752412247699,-460.0,0.00016986,2]
[371742448,1752412247708,-460.0,0.00016986,2]
[371742449,1752412247717,-957.33,0.00016986,2]
[371742450,1752412247727,-460.0,0.00016986,2]
[371742451,1752412247736,-445.7190445,0.00016986,2]
[371742452,1752412247746,-460.0,0.00016986,2]
[371742453,1752412247755,-460.0,0.00016986,2]
[371742454,1752412247765,-460.0,0.00016986,2]
[371742455,1752412247776,-460.0,0.00016986,2]
[371742456,1752412247787,-460.0,0.00016986,2]
[371742457,1752412247796,-2411.81,0.00016986,2]
[371742458,1752412247805,-537.39267293,0.00016986,2]
[371742459,1752412247815,-460.0,0.00016986,2]
[371742460,1752412247824,-460.0,0.00016986,2]
[371742461,1752412247834,-588.65,0.00016986,2]
[371742462,1752412247845,-460.0,0.00016986,2]
[371742463,1752412247855,-460.0,0.00016986,2]
[371742464,1752412247864,-500.0,0.00016986,2]
[371742465,1752412247874,-460.0,0.00016986,2]
[371742466,1752412247883,-460.0,0.00016986,2]
[371742467,1752412247893,-2270.15,0.00016986,2]
[371742468,1752412247902,-460.0,0.00016986,2]
[371742469,1752412247911,-642.75,0.00016986,2]
[371742470,1752412247921,-460.0,0.00016986,2]
[371742471,1752412247931,-523.84,0.00016986,2]
[371742472,1752412247940,-460.0,0.00016986,2]
[371742473,1752412247949,-500.0,0.00017021,2]
[371742474,1752412247959,-949.33250482,0.00017021,2]
[371742475,1752412247968,-2594.95335664,0.00017022,2]
[371742476,1752412247978,-161.248293,0.00017067,2]
[371742477,1752412247987,-391.41193111,0.000171,2]
[371742478,1752412247997,-161.248293,0.00017158,2]
[371742479,1752412248007,-391.41193108,0.0001721,2]
[371742480,1752412248016,-161.248293,0.00017249,2]
[371742481,1752412248026,-460.0,0.0001726,2]
[371742482,1752412248035,-460.0,0.0001726,2]
[371742483,1752412248044,-460.0,0.0001726,2]
[371742484,1752412248054,-460.0,0.0001726,2]
[371742485,1752412248063,-460.0,0.0001726,2]
[371742486,1752412248072,-460.0,0.0001726,2]
[371742487,1752412248082,-460.0,0.0001726,2]
[371742488,1752412248093,-480.06,0.0001726,2]
[371742489,1752412248103,-211.04951616,0.0001726,2]
[371742490,1752412248113,-460.0,0.0001726,2]
[371742491,1752412248123,-460.0,0.0001726,2]
[371742492,1752412248133,-460.0,0.0001726,2]
[371742493,1752412248142,-467.42799594,0.0001726,2]
[371742494,1752412248153,-460.0,0.0001726,2]
[371742495,1752412248163,-460.0,0.0001726,2]
[371742496,1752412248173,-460.0,0.0001726,2]
[371742497,1752412248183,-460.0,0.0001726,2]
[371742498,1752412248193,-521.93,0.0001726,2]
[371742499,1752412248203,-460.0,0.0001726,2]
[371742500,1752412248214,-460.0,0.0001726,2]
[371742501,1752412248224,-546.38,0.0001726,2]
[371742502,1752412248234,-460.0,0.0001726,2]
[371742503,1752412248244,-460.0,0.0001726,2]
[371742504,1752412248254,-460.0,0.0001726,2]
[371742505,1752412248266,-460.0,0.0001726,2]
[371742506,1752412248276,-460.0,0.0001726,2]
[371742508,1752412248287,-460.0,0.0001726,2]
[371742509,1752412248296,-460.0,0.0001726,2]
[371742511,1752412248305,-460.0,0.0001726,2]
[371742513,1752412248315,-460.0,0.0001726,2]
[371742514,1752412248324,-460.0,0.0001726,2]
[371742516,1752412248334,-460.0,0.0001726,2]
[371742518,1752412248346,-460.0,0.0001726,2]
[371742519,1752412248355,-460.0,0.0001726,2]
[371742521,1752412248365,-460.0,0.0001726,2]
[371742523,1752412248374,-460.0,0.0001726,2]
[371742524,1752412248384,-460.0,0.0001726,2]
[371742526,1752412248394,-460.0,0.0001726,2]
[371742528,1752412248403,-226.76280206,0.0001726,2]
[371742529,1752412248412,-460.0,0.0001726,2]
[371742531,1752412248422,-460.0,0.0001726,2]
[371742533,1752412248432,-460.0,0.0001726,2]
[371742534,1752412248441,-460.0,0.0001726,2]
[371742536,1752412248451,-460.0,0.0001726,2]
[371742538,1752412248460,-1097.75,0.0001726,2]
[371742540,1752412248470,-460.0,0.0001726,2]
[371742541,1752412248479,-460.0,0.0001726,2]
[371742543,1752412248488,-460.0,0.0001726,2]
[371742545,1752412248498,-1912.71,0.0001726,2]
[371742546,1752412248507,-460.0,0.0001726,2]
[371742548,1752412248517,-201.49230578,0.0001726,2]
[371742550,1752412248528,-460.0,0.0001726,2]
[371742551,1752412248537,-460.0,0.0001726,2]
[371742553,1752412248548,-2434.91,0.0001726,2]
[371742555,1752412248559,-478.37397861,0.0001726,2]
[371742556,1752412248569,-461.02,0.0001726,2]
[371742558,1752412248579,-460.0,0.0001726,2]
[371742560,1752412248590,-460.0,0.0001726,2]
[371742561,1752412248599,-507.11,0.0001726,2]
[371742563,1752412248609,-460.0,0.0001726,2]
[371742565,1752412248619,-460.0,0.0001726,2]
[371742566,1752412248629,-460.0,0.0001726,2]
[371742567,1752412248638,-350.72989772,0.0001726,2]
[371742568,1752412248647,-460.0,0.0001726,2]
[371742569,1752412248657,-600.71,0.0001726,2]
[371742570,1752412248667,-460.0,0.0001726,2]
[371742571,1752412248676,-1857.93,0.0001726,2]
[371742572,1752412248685,-460.0,0.0001726,2]
[371742573,1752412248695,-460.0,0.0001726,2]
[371742574,1752412248704,-460.0,0.0001726,2]
[371742575,1752412248714,-164.33,0.0001726,2]
[371742576,1752412248724,-460.0,0.0001726,2]
[371742577,1752412248733,-1161.66,0.0001726,2]
[371742578,1752412248742,-460.0,0.0001726,2]
[371742579,1752412248752,-1318.75,0.0001726,2]
[371742580,1752412248761,-625.22,0.0001726,2]
[371742581,1752412248770,-584.52,0.0001726,2]
[371742582,1752412248780,-460.0,0.0001726,2]
[371742583,1752412248790,-658.56,0.0001726,2]
[371742584,1752412248800,-460.0,0.0001726,2]
[371742585,1752412248809,-460.0,0.0001726,2]
[371742586,1752412248818,-460.0,0.0001726,2]
[371742587,1752412248827,-460.0,0.0001726,2]
[371742588,1752412248836,-460.0,0.0001726,2]
[371742589,1752412248847,-460.0,0.0001726,2]
[371742590,1752412248856,-526.59,0.0001726,2]
[371742591,1752412248866,-733.1,0.0001726,2]
[371742592,1752412248875,-798.12,0.0001726,2]
[371742593,1752412248885,-460.0,0.0001726,2]
[371742594,1752412248894,-460.0,0.0001726,2]
[371742595,1752412248903,-460.0,0.0001726,2]
[371742596,1752412248913,-460.0,0.0001726,2]
[371742597,1752412248923,-227.09,0.0001726,2]
[371742598,1752412248932,-460.0,0.0001726,2]
[371742599,1752412248942,-913.51,0.0001726,2]
[371742600,1752412248952,-460.0,0.0001726,2]
[371742601,1752412248962,-460.0,0.0001726,2]
[371742602,1752412248971,-460.0,0.0001726,2]
[371742603,1752412248980,-460.0,0.0001726,2]
[371742604,1752412248990,-957.33,0.0001726,2]
[371742605,1752412248999,-460.0,0.0001726,2]
[371742606,1752412249008,-460.0,0.0001726,2]
[371742607,1752412249018,-460.0,0.0001726,2]
[371742608,1752412249027,-460.0,0.0001726,2]
[371742609,1752412249037,-460.0,0.0001726,2]
[371742610,1752412249047,-2411.81,0.0001726,2]
[371742611,1752412249056,-460.0,0.0001726,2]
[371742612,1752412249066,-588.65,0.0001726,2]
[371742613,1752412249076,-460.0,0.0001726,2]
[371742614,1752412249086,-460.0,0.0001726,2]
[371742615,1752412249098,-460.0,0.0001726,2]
[371742616,1752412249108,-460.0,0.0001726,2]
[371742617,1752412249119,-2270.15,0.0001726,2]
[371742618,1752412249129,-460.0,0.0001726,2]
[371742619,1752412249138,-642.75,0.0001726,2]
[371742620,1752412249148,-460.0,0.0001726,2]
[371742621,1752412249159,-523.84,0.0001726,2]
[371742622,1752412249169,-500.0,0.00017273,2]
[371742623,1752412249179,-503.24985721,0.00017273,2]
[371742624,1752412249188,-487.80547386,0.00017321,2]
[371742625,1752412249198,-1002.22361763,0.00017321,2]
[371742626,1752412249207,-1000.0,0.00017321,2]
[371742627,1752412249218,-500.0,0.00017321,2]
[371742628,1752412249228,-1000.0,0.00017321,2]
[371742629,1752412249238,-506.97598134,0.00017321,2]
[371742630,1752412249248,-263.97524189,0.00017321,2]
[371742631,1752412249259,-1009.02355026,0.00017321,2]
[371742632,1752412249269,-1000.0,0.00017321,2]
[371742633,1752412249279,-1000.0,0.00017321,2]
[371742634,1752412249290,-1000.0,0.00017321,2]
[371742635,1752412249300,-1000.0,0.00017321,2]
[371742636,1752412249310,-1000.0,0.00017321,2]
[371742637,1752412249320,-525.77011804,0.00017321,2]
[371742638,1752412249330,-500.0,0.00017321,2]
[371742639,1752412249340,-500.0,0.00017321,2]
[371742640,1752412249351,-457.35057617,0.00017321,2]
[371742641,1752412249360,-1000.0,0.00017321,2]
[371742642,1752412249370,-1000.0,0.00017321,2]
[371742643,1752412249379,-502.5197529,0.00017321,2]
[371742644,1752412249389,-161.248293,0.0001734,2]
[371742645,1752412249399,-161.248293,0.00017432,2]
[371742646,1752412249408,-160.0,0.00017441,2]
[371742647,1752412249417,-1001.58885187,0.00017521,2]
[371742648,1752412249426,-173.82905292,0.00017521,2]
[371742649,1752412249435,-391.41193108,0.00017521,2]
[371742650,1752412249445,-161.248293,0.00017523,2]
[371742651,1752412249454,-460.0,0.00017534,2]
[371742652,1752412249463,-460.0,0.00017534,2]
[371742653,1752412249473,-460.0,0.00017534,2]
[371742654,1752412249483,-460.0,0.00017534,2]
[371742655,1752412249492,-460.0,0.00017534,2]
[371742656,1752412249501,-192.7,0.00017534,2]
[371742657,1752412249511,-480.06,0.00017534,2]
[371742658,1752412249521,-460.0,0.00017534,2]
[371742659,1752412249533,-460.0,0.00017534,2]
[371742660,1752412249543,-460.0,0.00017534,2]
[371742661,1752412249552,-460.0,0.00017534,2]
[371742662,1752412249562,-460.0,0.00017534,2]
[371742663,1752412249572,-460.0,0.00017534,2]
[371742664,1752412249582,-521.93,0.00017534,2]
[371742665,1752412249591,-460.0,0.00017534,2]
[371742666,1752412249600,-460.0,0.00017534,2]
[371742667,1752412249612,-546.38,0.00017534,2]
[371742668,1752412249622,-460.0,0.00017534,2]
[371742669,1752412249631,-442.34809504,0.00017534,2]
[371742670,1752412249641,-460.0,0.00017534,2]
[371742671,1752412249650,-215.030696,0.00017534,2]
[371742672,1752412249660,-215.030696,0.00017534,2]
[371742673,1752412249670,-460.0,0.00017534,2]
[371742674,1752412249679,-460.0,0.00017534,2]
[371742675,1752412249688,-460.0,0.00017534,2]
[371742676,1752412249698,-460.0,0.00017534,2]
[371742677,1752412249707,-460.0,0.00017534,2]
[371742678,1752412249716,-460.0,0.00017534,2]
[371742679,1752412249725,-460.0,0.00017534,2]
[371742680,1752412249734,-460.0,0.00017534,2]
[371742681,1752412249744,-214.956284,0.00017534,2]
[371742682,1752412249754,-460.0,0.00017534,2]
[371742683,1752412249763,-460.0,0.00017534,2]
[371742684,1752412249772,-460.0,0.00017534,2]
[371742685,1752412249781,-460.0,0.00017534,2]
[371742686,1752412249791,-599.29,0.00017534,2]
[371742687,1752412249893,-257.65104003,0.00017534,2]
[371742688,1752412249902,-460.0,0.00017534,2]
[371742689,1752412249911,-460.0,0.00017534,2]
[371742690,1752412249921,-1097.75,0.00017534,2]
[371742691,1752412249930,-460.0,0.00017534,2]
[371742692,1752412249940,-460.0,0.00017534,2]
[371742693,1752412249950,-1912.71,0.00017534,2]
[371742694,1752412249959,-460.0,0.00017534,2]
[371742695,1752412249968,-460.0,0.00017534,2]
[371742696,1752412249977,-564.40708314,0.00017534,2]
[371742697,1752412249986,-460.0,0.00017534,2]
[371742698,1752412249995,-2434.91,0.00017534,2]
[371742699,1752412250005,-461.02,0.00017534,2]
[371742700,1752412250014,-460.0,0.00017534,2]
[371742701,1752412250024,-460.0,0.00017534,2]
[371742702,1752412250033,-507.11,0.00017534,2]
[371742704,1752412250042,-460.0,0.00017534,2]
[371742706,1752412250051,-463.15584125,0.00017534,2]
[371742708,1752412250061,-460.0,0.00017534,2]
[371742710,1752412250070,-460.0,0.00017534,2]
[371742711,1752412250079,-600.71,0.00017534,2]
[371742712,1752412250088,-1857.93,0.00017534,2]
[371742713,1752412250099,-460.0,0.00017534,2]
[371742715,1752412250108,-460.0,0.00017534,2]
[371742717,1752412250117,-460.0,0.00017534,2]
[371742719,1752412250126,-460.0,0.00017534,2]
[371742720,1752412250136,-1161.66,0.00017534,2]
[371742721,1752412250145,-460.0,0.00017534,2]
[371742722,1752412250154,-1318.75,0.00017534,2]
[371742723,1752412250164,-625.22,0.00017534,2]
[371742724,1752412250174,-584.52,0.00017534,2]
[371742725,1752412250183,-460.0,0.00017534,2]
[371742726,1752412250193,-658.56,0.00017534,2]
[371742727,1752412250203,-460.0,0.00017534,2]
[371742728,1752412250212,-460.0,0.00017534,2]
[371742729,1752412250221,-460.0,0.00017534,2]